fUST/lending_fUST_20240824
["ID","MTS","AMOUNT","RATE_DAILY","PERIOD"]
[335777992,1724488239451,-500.0,0.00013698,2]
[335777994,1724488239462,-708.01,0.00013698,2]
[335777996,1724488239471,-500.0,0.00013698,2]
[335777998,1724488239481,-500.0,0.00013698,2]
[335778000,1724488239491,-500.0,0.00013698,2]
[335778002,1724488239501,-500.0,0.00013698,2]
[335778004,1724488239511,-500.0,0.00013698,2]
[335778006,1724488239520,-500.0,0.00013698,2]
[335778008,1724488239530,-392.54433807,0.00013698,2]
[335778010,1724488239541,-500.0,0.00013698,2]
[335778012,1724488239551,-500.0,0.00013698,2]
[335778014,1724488239561,-519.01160448,0.00013698,2]
[335778016,1724488239571,-500.0,0.00013698,2]
[335778018,1724488239582,-500.0,0.00013698,2]
[335778020,1724488239592,-500.0,0.00013698,2]
[335778022,1724488239602,-500.0,0.00013698,2]
[335778024,1724488239613,-500.0,0.00013698,2]
[335778026,1724488239623,-754.78,0.00013698,2]
[335778028,1724488239632,-582.85,0.00013698,2]
[335778030,1724488239643,-500.0,0.00013698,2]
[335778032,1724488239652,-500.0,0.00013698,2]
[335778035,1724488239662,-500.0,0.00013698,2]
[335778036,1724488239672,-500.0,0.00013698,2]
[335778037,1724488239682,-506.71770182,0.00013698,2]
[335778038,1724488239692,-910.19,0.00013698,2]
[335778039,1724488239702,-528.43,0.00013698,2]
[335778040,1724488239713,-500.0,0.00013698,2]
[335778041,1724488239722,-833.54,0.00013698,2]
[335778042,1724488239732,-500.0,0.00013698,2]
[335778043,1724488239741,-229.3474428,0.00013698,2]
[335778044,1724488239772,-270.6525572,0.00013698,2]
[335778045,1724488239782,-500.0,0.00013698,2]
[335778046,1724488239791,-277.41806533,0.00013698,2]
[335778103,1724488240408,-369.51193467,0.00013698,2]
[335778104,1724488240420,-1481.35,0.00013698,2]
[335778107,1724488240430,-520.12,0.00013698,2]
[335778109,1724488240439,-532.59,0.00013698,2]
[335778111,1724488240448,-500.0,0.00013698,2]
[335778113,1724488240458,-500.0,0.00013698,2]
[335778114,1724488240468,-500.0,0.00013698,2]
[335778116,1724488240478,-500.0,0.00013698,2]
[335778119,1724488240489,-393.31312517,0.00013698,2]
[335778121,1724488240500,-500.0,0.00013698,2]
[335778123,1724488240510,-386.26596182,0.00013698,2]
[335778125,1724488240522,-500.0,0.00013698,2]
[335778127,1724488240532,-500.0,0.00013698,2]
[335778129,1724488240547,-500.0,0.00013698,2]
[335778131,1724488240556,-500.0,0.00013698,2]
[335778133,1724488240566,-500.32916369,0.00013698,2]
[335778136,1724488240578,-500.0,0.00013698,2]
[335778138,1724488240588,-519.05,0.00013698,2]
[335778140,1724488240597,-500.0,0.00013698,2]
[335778142,1724488240608,-500.0,0.00013698,2]
[335778143,1724488240621,-600.1766045,0.00013698,2]
[335778144,1724488240632,-561.59264497,0.00013698,2]
[335778145,1724488240641,-500.0,0.00013698,2]
[335778146,1724488240651,-1036.31,0.00013698,2]
[335778147,1724488240661,-1008.04,0.00013698,2]
[335778148,1724488240670,-500.0,0.00013698,2]
[335778149,1724488240680,-500.0,0.00013698,2]
[335778150,1724488240693,-500.0,0.00013698,2]
[335778151,1724488240703,-534.72,0.00013698,2]
[335778152,1724488240713,-331.08228858,0.00013698,2]
[335778153,1724488240723,-826.69,0.00013698,2]
[335778154,1724488240734,-500.0,0.00013698,2]
[335778155,1724488240743,-500.0,0.00013698,2]
[335778157,1724488240754,-2337.39,0.00013698,2]
[335778159,1724488240764,-500.0,0.00013698,2]
[335778161,1724488240775,-1195.39,0.00013698,2]
[335778163,1724488240786,-500.0,0.00013698,2]
[335778166,1724488240797,-500.886722,0.00013698,2]
[335778168,1724488240807,-500.0,0.00013698,2]
[335778170,1724488240818,-500.0,0.00013698,2]
[335778172,1724488240828,-663.85,0.00013698,2]
[335778174,1724488240840,-500.0,0.00013698,2]
[335778176,1724488240850,-502.7374095,0.00013698,2]
[335778179,1724488240861,-1036.03,0.00013698,2]
[335778181,1724488240871,-657.81,0.00013698,2]
[335778183,1724488240879,-500.0,0.00013698,2]
[335778185,1724488240889,-500.0,0.00013698,2]
[335778187,1724488240898,-1137.9,0.00013698,2]
[335778189,1724488240907,-500.0,0.00013698,2]
[335778191,1724488240917,-500.0,0.00013698,2]
[335778193,1724488240927,-500.0,0.00013698,2]
[335778195,1724488240936,-500.0,0.00013698,2]
[335778197,1724488240946,-500.0,0.00013698,2]
[335778199,1724488240956,-1951.13,0.00013698,2]
[335778201,1724488240966,-500.0,0.00013698,2]
[335778203,1724488240976,-710.97,0.00013698,2]
[335778205,1724488240986,-500.0,0.00013698,2]
[335778207,1724488240996,-500.0,0.00013698,2]
[335778209,1724488241005,-500.0,0.00013698,2]
[335778211,1724488241014,-500.0,0.00013698,2]
[335778213,1724488241024,-524.07,0.00013698,2]
[335778215,1724488241035,-500.0,0.00013698,2]
[335778217,1724488241045,-500.0,0.00013698,2]
[335778219,1724488241054,-725.92,0.00013698,2]
[335778222,1724488241064,-548.09,0.00013698,2]
[335778224,1724488241074,-637.88,0.00013698,2]
[335778226,1724488241082,-500.0,0.00013698,2]
[335778228,1724488241093,-500.0,0.00013698,2]
[335778230,1724488241102,-687.18,0.00013698,2]
[335778232,1724488241111,-1296.26,0.00013698,2]
[335778234,1724488241121,-500.0,0.00013698,2]
[335778236,1724488241130,-500.0,0.00013698,2]
[335778238,1724488241140,-798.11,0.00013698,2]
[335778239,1724488241149,-500.0,0.00013698,2]
[335778241,1724488241159,-500.0,0.00013698,2]
[335778243,1724488241168,-500.0,0.00013698,2]
[335778245,1724488241178,-500.0,0.00013698,2]
[335778248,1724488241188,-500.0,0.00013698,2]
[335778250,1724488241198,-500.0,0.00013698,2]
[335778252,1724488241207,-299.67801397,0.00013698,2]
[335778254,1724488241217,-500.0,0.00013698,2]
[335778256,1724488241227,-532.79,0.00013698,2]
[335778258,1724488241236,-500.0,0.00013698,2]
[335778260,1724488241246,-500.0,0.00013698,2]
[335778262,1724488241256,-500.0,0.00013698,2]
[335778264,1724488241265,-500.0,0.00013698,2]
[335778266,1724488241275,-500.0,0.00013698,2]
[335778268,1724488241285,-500.0,0.00013698,2]
[335778270,1724488241295,-566.86701025,0.00013698,2]
[335778272,1724488241304,-500.0,0.00013698,2]
[335778274,1724488241313,-754.58,0.00013698,2]
[335778276,1724488241323,-535.47,0.00013698,2]
[335778278,1724488241336,-688.58,0.00013698,2]
[335778280,1724488241351,-500.0,0.00013698,2]
[335778282,1724488241361,-854.63,0.00013698,2]
[335778284,1724488241371,-500.0,0.00013698,2]
[335778286,1724488241380,-500.0,0.00013698,2]
[335778289,1724488241391,-500.0,0.00013698,2]
[335778291,1724488241401,-500.0,0.00013698,2]
[335778293,1724488241411,-500.0,0.00013698,2]
[335778295,1724488241422,-500.0,0.00013698,2]
[335778297,1724488241433,-500.0,0.00013698,2]
[335778299,1724488241443,-1550.85,0.00013698,2]
[335778301,1724488241453,-1088.78,0.00013698,2]
[335778303,1724488241462,-500.0,0.00013698,2]
[335778305,1724488241472,-500.0,0.00013698,2]
[335778307,1724488241481,-500.0,0.00013698,2]
[335778309,1724488241491,-500.0,0.00013698,2]
[335778311,1724488241501,-506.58545164,0.00013698,2]
[335778313,1724488241511,-952.68,0.00013698,2]
[335778315,1724488241521,-500.0,0.00013698,2]
[335778317,1724488241530,-500.0,0.00013698,2]
[335778319,1724488241540,-500.0,0.00013698,2]
[335778321,1724488241550,-500.0,0.00013698,2]
[335778323,1724488241559,-500.0,0.00013698,2]
[335778325,1724488241570,-500.0,0.00013698,2]
[335778328,1724488241580,-774.22,0.00013698,2]
[335778330,1724488241590,-500.0,0.00013698,2]
[335778332,1724488241599,-626.95,0.00013698,2]
[335778334,1724488241609,-500.0,0.00013698,2]
[335778336,1724488241621,-500.0,0.00013698,2]
[335778338,1724488241632,-500.0,0.00013698,2]
[335778340,1724488241643,-500.0,0.00013698,2]
[335778343,1724488241653,-1074.67,0.00013698,2]
[335778345,1724488241663,-500.0,0.00013698,2]
[335778347,1724488241673,-2885.12,0.00013698,2]
[335778349,1724488241682,-500.0,0.00013698,2]
[335778351,1724488241692,-500.0,0.00013698,2]
[335778353,1724488241702,-554.52,0.00013698,2]
[335778355,1724488241711,-921.23,0.00013698,2]
[335778357,1724488241720,-500.0,0.00013698,2]
[335778359,1724488241730,-459.53187077,0.00013698,2]
[335778361,1724488241740,-2608.87,0.00013698,2]
[335778363,1724488241749,-500.0,0.00013698,2]
[335778365,1724488241759,-502.87,0.00013698,2]
[335778367,1724488241769,-500.0,0.00013698,2]
[335778369,1724488241778,-500.0,0.00013698,2]
[335778371,1724488241790,-500.0,0.00013698,2]
[335778373,1724488241801,-641.19,0.00013698,2]
[335778375,1724488241810,-500.0,0.00013698,2]
[335778377,1724488241819,-500.0,0.00013698,2]
[335778379,1724488241829,-500.0,0.00013698,2]
[335778381,1724488241838,-861.69,0.00013698,2]
[335778383,1724488241848,-500.0,0.00013698,2]
[335778385,1724488241857,-656.91,0.00013698,2]
[335778388,1724488241867,-506.08,0.00013698,2]
[335778390,1724488241877,-1224.04,0.00013698,2]
[335778392,1724488241886,-500.0,0.00013698,2]
[335778394,1724488241895,-500.0,0.00013698,2]
[335778396,1724488241904,-500.0,0.00013698,2]
[335778398,1724488241914,-500.0,0.00013698,2]
[335778400,1724488241924,-684.77,0.00013698,2]
[335778402,1724488241936,-500.0,0.00013698,2]
[335778404,1724488241945,-582.34985091,0.00013698,2]
[335778406,1724488241955,-863.83,0.00013698,2]
[335778408,1724488241964,-835.65,0.00013698,2]
[335778410,1724488241973,-500.0,0.00013698,2]
[335778412,1724488241983,-501.32545482,0.00013698,2]
[335778414,1724488241993,-500.0,0.00013698,2]
[335778417,1724488242002,-500.0,0.00013698,2]
[335778419,1724488242011,-500.0,0.00013698,2]
[335778421,1724488242021,-1153.24,0.00013698,2]
[335778423,1724488242030,-500.0,0.00013698,2]
[335778424,1724488242040,-1016.45,0.00013698,2]
[335778427,1724488242050,-2663.43,0.00013698,2]
[335778429,1724488242059,-500.0,0.00013698,2]
[335778431,1724488242069,-1614.69,0.00013698,2]
[335778433,1724488242080,-617.65,0.00013698,2]
[335778435,1724488242091,-500.0,0.00013698,2]
[335778437,1724488242101,-661.86,0.00013698,2]
[335778439,1724488242112,-500.0,0.00013698,2]
[335778441,1724488242122,-500.0,0.00013698,2]
[335778443,1724488242132,-500.0,0.00013698,2]
[335778446,1724488242142,-500.0,0.00013698,2]
[335778448,1724488242152,-1917.88,0.00013698,2]
[335778450,1724488242162,-500.0,0.00013698,2]
[335778452,1724488242171,-1201.5,0.00013698,2]
[335778454,1724488242180,-500.0,0.00013698,2]
[335778456,1724488242190,-500.0,0.00013698,2]
[335778458,1724488242199,-1827.51,0.00013698,2]
[335778460,1724488242209,-232.57120854,0.00013698,2]
[335778462,1724488242218,-1220.24,0.00013698,2]
[335778464,1724488242228,-500.0,0.00013698,2]
[335778466,1724488242238,-845.89,0.00013698,2]
[335778468,1724488242247,-636.06,0.00013698,2]
[335778470,1724488242256,-1054.15,0.00013698,2]
[335778472,1724488242266,-845.62,0.00013698,2]
[335778474,1724488242276,-500.0,0.00013698,2]
[335778476,1724488242286,-500.0,0.00013698,2]
[335778478,1724488242295,-1160.53,0.00013698,2]
[335778480,1724488242305,-1318.08,0.00013698,2]
[335778482,1724488242314,-500.0,0.00013698,2]
[335778484,1724488242324,-940.3,0.00013698,2]
[335778487,1724488242337,-500.0,0.00013698,2]
[335778489,1724488242350,-500.0,0.00013698,2]
[335778491,1724488242360,-500.0,0.00013698,2]
[335778493,1724488242369,-500.0,0.00013698,2]
[335778495,1724488242380,-500.0,0.00013698,2]
[335778497,1724488242393,-1363.24,0.00013698,2]
[335778499,1724488242404,-662.48,0.00013698,2]
[335778502,1724488242414,-1057.63,0.00013698,2]
[335778505,1724488242426,-1310.45,0.00013698,2]
[335778507,1724488242436,-757.27,0.00013698,2]
[335778509,1724488242445,-500.0,0.00013698,2]
[335778511,1724488242455,-500.0,0.00013698,2]
[335778513,1724488242464,-500.0,0.00013698,2]
[335778515,1724488242474,-500.0,0.00013698,2]
[335778517,1724488242483,-500.0,0.00013698,2]
[335778519,1724488242492,-784.22,0.00013698,2]
[335778521,1724488242502,-500.0,0.00013698,2]
[335778524,1724488242511,-500.0,0.00013698,2]
[335778525,1724488242521,-500.0,0.00013698,2]
[335778528,1724488242530,-500.0,0.00013698,2]
[335778530,1724488242541,-500.0,0.00013698,2]
[335778532,1724488242550,-500.0,0.00013698,2]
[335778534,1724488242560,-1446.02,0.00013698,2]
[335778536,1724488242569,-1344.28,0.00013698,2]
[335778537,1724488242579,-500.0,0.00013698,2]
[335778540,1724488242589,-500.0,0.00013698,2]
[335778543,1724488242598,-787.3,0.00013698,2]
[335778547,1724488242608,-500.0,0.00013698,2]
[335778550,1724488242618,-500.0,0.00013698,2]
[335778553,1724488242628,-1093.73,0.00013698,2]
[335778556,1724488242637,-500.0,0.00013698,2]
[335778559,1724488242647,-500.0,0.00013698,2]
[335778562,1724488242656,-500.0,0.00013698,2]
[335778565,1724488242666,-628.13,0.00013698,2]
[335778568,1724488242676,-500.0,0.00013698,2]
[335778570,1724488242685,-500.0,0.00013698,2]
[335778572,1724488242695,-500.0,0.00013698,2]
[335778574,1724488242704,-1196.25,0.00013698,2]
[335778576,1724488242713,-1444.4,0.00013698,2]
[335778578,1724488242723,-1031.43,0.00013698,2]
[335778580,1724488242732,-577.06,0.00013698,2]
[335778582,1724488242743,-500.0,0.00013698,2]
[335778584,1724488242752,-500.0,0.00013698,2]
[335778586,1724488242763,-618.79,0.00013698,2]
[335778588,1724488242772,-500.0,0.00013698,2]
[335778603,1724488242966,-500.0,0.00013698,2]
[335778604,1724488242976,-500.0,0.00013698,2]
[335778605,1724488242988,-500.0,0.00013698,2]
[335778606,1724488242998,-527.98,0.00013698,2]
[335778607,1724488243008,-604.65792644,0.00013698,2]
[335778608,1724488243019,-500.0,0.00013698,2]
[335778609,1724488243031,-500.0,0.00013698,2]
[335778610,1724488243042,-672.02,0.00013698,2]
[335778611,1724488243053,-500.0,0.00013698,2]
[335778612,1724488243064,-500.0,0.00013698,2]
[335778613,1724488243074,-1089.05,0.00013698,2]
[335778614,1724488243083,-500.0,0.00013698,2]
[335778615,1724488243094,-500.61120877,0.00013698,2]
[335778616,1724488243104,-544.68,0.00013698,2]
[335778617,1724488243114,-1887.5,0.00013698,2]
[335778619,1724488243126,-500.0,0.00013698,2]
[335778621,1724488243137,-500.0,0.00013698,2]
[335778623,1724488243148,-500.0,0.00013698,2]
[335778625,1724488243158,-1194.25,0.00013698,2]
[335778627,1724488243167,-506.37907937,0.00013698,2]
[335778629,1724488243176,-500.0,0.00013698,2]
[335778631,1724488243186,-500.0,0.00013698,2]
[335778634,1724488243195,-500.0,0.00013698,2]
[335778637,1724488243205,-909.56,0.00013698,2]
[335778639,1724488243214,-501.64568335,0.00013698,2]
[335778642,1724488243224,-500.54700037,0.00013698,2]
[335778645,1724488243233,-500.0,0.00013698,2]
[335778648,1724488243243,-500.0,0.00013698,2]
[335778650,1724488243253,-519.26554519,0.00013698,2]
[335778652,1724488243262,-696.95,0.00013698,2]
[335778654,1724488243272,-1433.54,0.00013698,2]
[335778656,1724488243281,-536.71473658,0.00013698,2]
[335778658,1724488243291,-500.0,0.00013698,2]
[335778660,1724488243300,-748.1,0.00013698,2]
[335778662,1724488243310,-500.0,0.00013698,2]
[335778664,1724488243320,-500.0,0.00013698,2]
[335778666,1724488243330,-646.75,0.00013698,2]
[335778668,1724488243343,-958.12,0.00013698,2]
[335778670,1724488243354,-500.0,0.00013698,2]
[335778672,1724488243364,-1739.84,0.00013698,2]
[335778674,1724488243373,-502.17279069,0.00013698,2]
[335778676,1724488243383,-795.97,0.00013698,2]
[335778678,1724488243393,-551.65,0.00013698,2]
[335778679,1724488243402,-1752.11,0.00013698,2]
[335778681,1724488243414,-500.0,0.00013698,2]
[335778683,1724488243424,-518.47,0.00013698,2]
[335778685,1724488243434,-521.77,0.00013698,2]
[335778687,1724488243444,-500.0,0.00013698,2]
[335778689,1724488243455,-1931.78,0.00013698,2]
[335778691,1724488243465,-500.0,0.00013698,2]
[335778693,1724488243475,-500.0,0.00013698,2]
[335778695,1724488243485,-500.0,0.00013698,2]
[335778697,1724488243494,-500.0,0.00013698,2]
[335778699,1724488243504,-767.21,0.00013698,2]
[335778701,1724488243514,-500.0,0.00013698,2]
[335778703,1724488243523,-500.0,0.00013698,2]
[335778706,1724488243533,-733.43,0.00013698,2]
[335778708,1724488243543,-534.09,0.00013698,2]
[335778710,1724488243553,-2008.85,0.00013698,2]
[335778712,1724488243563,-585.26,0.00013698,2]
[335778714,1724488243572,-500.0,0.00013698,2]
[335778716,1724488243582,-500.0,0.00013698,2]
[335778718,1724488243592,-520.02,0.00013698,2]
[335778720,1724488243602,-500.0,0.00013698,2]
[335778722,1724488243611,-500.0,0.00013698,2]
[335778724,1724488243621,-501.55941497,0.00013698,2]
[335778726,1724488243631,-500.0,0.00013698,2]
[335778728,1724488243641,-500.0,0.00013698,2]
[335778730,1724488243650,-554.66,0.00013698,2]
[335778732,1724488243661,-1133.88,0.00013698,2]
[335778734,1724488243671,-500.0,0.00013698,2]
[335778736,1724488243680,-502.28746438,0.00013698,2]
[335778738,1724488243689,-3167.62,0.00013698,2]
[335778740,1724488243698,-511.473911,0.00013698,2]
[335778741,1724488243708,-501.19817858,0.00013698,2]
[335778742,1724488243717,-500.0,0.00013698,2]
[335778743,1724488243727,-500.0,0.00013698,2]
[335778744,1724488243736,-784.76,0.00013698,2]
[335778745,1724488243746,-1194.59,0.00013698,2]
[335778746,1724488243756,-19213.3,0.00013698,2]
[335778747,1724488243765,-500.0,0.00013698,2]
[335778748,1724488243775,-1000.0,0.00013698,2]
[335778749,1724488243784,-6298.09,0.00013698,2]
[335778750,1724488243793,-6298.09,0.00013698,2]
[335778751,1724488243803,-6298.09,0.00013698,2]
[335778752,1724488243812,-500.0,0.00013698,2]
[335778753,1724488243822,-6298.09,0.00013698,2]
[335778754,1724488243832,-762.3,0.00013698,2]
[335778755,1724488243841,-6298.09,0.00013698,2]
[335778757,1724488243851,-6298.09,0.00013698,2]
[335778759,1724488243861,-6298.09,0.00013698,2]
[335778762,1724488243871,-6298.09,0.00013698,2]
[335778764,1724488243880,-6298.09,0.00013698,2]
[335778766,1724488243890,-6298.09,0.00013698,2]
[335778768,1724488243899,-6298.09,0.00013698,2]
[335778770,1724488243908,-6298.09,0.00013698,2]
[335778772,1724488243918,-6298.09,0.00013698,2]
[335778774,1724488243927,-6580.71,0.00013698,2]
[335778776,1724488243936,-286.92579361,0.00013698,2]
[335778778,1724488243946,-6298.09,0.00013698,2]
[335778780,1724488243956,-500.0,0.00013698,2]
[335778782,1724488243966,-6298.09,0.00013698,2]
[335778784,1724488243975,-6298.09,0.00013698,2]
[335778786,1724488243985,-500.0,0.00013698,2]
[335778788,1724488243994,-500.0,0.00013698,2]
[335778790,1724488244004,-2651.58,0.00013698,2]
[335778792,1724488244014,-500.0,0.00013698,2]
[335778794,1724488244023,-500.0,0.00013698,2]
[335778796,1724488244033,-1225.89,0.00013698,2]
[335778798,1724488244043,-500.0,0.00013698,2]
[335778800,1724488244052,-500.0,0.00013698,2]
[335778802,1724488244061,-500.0,0.00013698,2]
[335778804,1724488244070,-500.0,0.00013698,2]
[335778806,1724488244080,-500.0,0.00013698,2]
[335778808,1724488244089,-500.0,0.00013698,2]
[335778810,1724488244099,-628.8,0.00013698,2]
[335778812,1724488244109,-1126.98,0.00013698,2]
[335778814,1724488244118,-204.97957713,0.00013698,2]
[335778816,1724488244128,-1822.62,0.00013698,2]
[335778818,1724488244137,-500.0,0.00013698,2]
[335778820,1724488244147,-2451.69,0.00013698,2]
[335778822,1724488244156,-500.0,0.00013698,2]
[335778824,1724488244166,-500.0,0.00013698,2]
[335778826,1724488244175,-500.0,0.00013698,2]
[335778828,1724488244185,-1971.96,0.00013698,2]
[335778830,1724488244195,-916.03,0.00013698,2]
[335778833,1724488244204,-565.93,0.00013698,2]
[335778834,1724488244213,-500.0,0.00013698,2]
[335778837,1724488244223,-500.0,0.00013698,2]
[335778839,1724488244233,-855.13,0.00013698,2]
[335778841,1724488244242,-668.17,0.00013698,2]
[335778843,1724488244252,-790.06,0.00013698,2]
[335778845,1724488244261,-601.53830752,0.00013698,2]
[335778847,1724488244271,-620.02,0.00013698,2]
[335778849,1724488244281,-7861.99,0.00013698,2]
[335778851,1724488244291,-500.0,0.00013698,2]
[335778853,1724488244301,-3572.15,0.00013698,2]
[335778855,1724488244311,-622.63,0.00013698,2]
[335778857,1724488244321,-500.0,0.00013698,2]
[335778859,1724488244331,-648.23,0.00013698,2]
[335778861,1724488244346,-500.0,0.00013698,2]
[335778864,1724488244358,-2081.86,0.00013698,2]
[335778866,1724488244368,-887.83,0.00013698,2]
[335778868,1724488244378,-961.68,0.00013698,2]
[335778870,1724488244388,-514.21811915,0.00013698,2]
[335778872,1724488244397,-500.0,0.00013698,2]
[335778874,1724488244407,-500.0,0.00013698,2]
[335778876,1724488244417,-500.0,0.00013698,2]
[335778878,1724488244428,-655.33,0.00013698,2]
[335778880,1724488244438,-848.13,0.00013698,2]
[335778882,1724488244449,-5533.9,0.00013698,2]
[335778884,1724488244459,-500.0,0.00013698,2]
[335778886,1724488244469,-8692.07,0.00013698,2]
[335778888,1724488244478,-500.0,0.00013698,2]
[335778891,1724488244490,-500.0,0.00013698,2]
[335778893,1724488244501,-2286.49,0.00013698,2]
[335778895,1724488244511,-2044.14,0.00013698,2]
[335778897,1724488244521,-514.07,0.00013698,2]
[335778899,1724488244530,-10513.23,0.00013698,2]
[335778901,1724488244546,-743.72,0.00013698,2]
[335778903,1724488244560,-500.0,0.00013698,2]
[335778905,1724488244570,-500.0,0.00013698,2]
[335778907,1724488244579,-582.76,0.00013698,2]
[335778909,1724488244589,-1396.82,0.00013698,2]
[335778911,1724488244598,-1507.86,0.00013698,2]
[335778913,1724488244608,-500.0,0.00013698,2]
[335778915,1724488244619,-657.49,0.00013698,2]
[335778917,1724488244629,-502.22111403,0.00013698,2]
[335778919,1724488244638,-615.37,0.00013698,2]
[335778921,1724488244647,-906.56,0.00013698,2]
[335778923,1724488244657,-297.07315214,0.00013698,2]
[335778925,1724488244667,-500.0,0.00013698,2]
[335778927,1724488244677,-542.08,0.00013698,2]
[335778929,1724488244686,-3224.82,0.00013698,2]
[335778931,1724488244696,-500.0,0.00013698,2]
[335778933,1724488244705,-585.93,0.00013698,2]
[335778935,1724488244715,-500.0,0.00013698,2]
[335778936,1724488244725,-500.0,0.00013698,2]
[335778938,1724488244738,-500.0,0.00013698,2]
[335778940,1724488244748,-500.0,0.00013698,2]
[335778942,1724488244759,-684.94,0.00013698,2]
[335778944,1724488244770,-20125.35,0.00013698,2]
[335778945,1724488244780,-500.0,0.00013698,2]
[335778946,1724488244792,-500.0,0.00013698,2]
[335778947,1724488244803,-749.33,0.00013698,2]
[335778948,1724488244813,-500.0,0.00013698,2]
[335778949,1724488244825,-565.75122264,0.00013698,2]
[335778950,1724488244836,-849.44,0.00013698,2]
[335778951,1724488244845,-943.24,0.00013698,2]
[335778952,1724488244855,-1866.86,0.00013698,2]
[335778953,1724488244865,-500.0,0.00013698,2]
[335778954,1724488244876,-2212.87,0.00013698,2]
[335778955,1724488244887,-4404.8,0.00013698,2]
[335778956,1724488244898,-932.26,0.00013698,2]
[335778957,1724488244910,-500.0,0.00013698,2]
[335778959,1724488244920,-507.45,0.00013698,2]
[335778961,1724488244930,-1336.19,0.00013698,2]
[335778963,1724488244940,-500.0,0.00013698,2]
[335778965,1724488244951,-500.0,0.00013698,2]
[335778967,1724488244961,-5334.97,0.00013698,2]
[335778969,1724488244971,-739.84,0.00013698,2]
[335778971,1724488244982,-2182.36,0.00013698,2]
[335778973,1724488244992,-606.39,0.00013698,2]
[335778975,1724488245003,-500.0,0.00013698,2]
[335778977,1724488245014,-500.0,0.00013698,2]
[335778979,1724488245025,-500.0,0.00013698,2]
[335778981,1724488245035,-979.82,0.00013698,2]
[335778983,1724488245045,-500.0,0.00013698,2]
[335778985,1724488245054,-719.94,0.00013698,2]
[335778987,1724488245064,-500.0,0.00013698,2]
[335778989,1724488245074,-170.87905401,0.00013698,2]
[335778991,1724488245083,-500.0,0.00013698,2]
[335778993,1724488245093,-2709.26,0.00013698,2]
[335778995,1724488245102,-500.0,0.00013698,2]
[335778997,1724488245112,-1771.09,0.00013698,2]
[335778999,1724488245121,-500.0,0.00013698,2]
[335779001,1724488245130,-585.67,0.00013698,2]
[335779003,1724488245140,-637.02716886,0.00013698,2]
[335779060,1724488245696,-8569.36283114,0.00013698,2]
[335779062,1724488245705,-500.0,0.00013698,2]
[335779064,1724488245714,-500.0,0.00013698,2]
[335779066,1724488245723,-826.82,0.00013698,2]
[335779068,1724488245732,-571.34,0.00013698,2]
[335779070,1724488245742,-3223.57,0.00013698,2]
[335779072,1724488245752,-1382.93,0.00013698,2]
[335779074,1724488245761,-640.37,0.00013698,2]
[335779076,1724488245770,-500.0,0.00013698,2]
[335779078,1724488245780,-4480.24,0.00013698,2]
[335779080,1724488245789,-1774.45,0.00013698,2]